Cogmind - Beta 17.1 @@@ ROGUE MODE // 2026.09.08 @ 21:17:06 Player: Katana1232 Result: Destroyed by G-47 Trooper with Particle Gun Performance ------------- Evolutions (3) 1500 Regions Visited (6) 1200 Robots Destroyed (35) 175 Value Destroyed (1075) 1075 Prototype IDs (1) 20 Alien Tech Used (0) 0 Bonus (-198) -198 TOTAL SCORE: 3772 Bonus ------- Friendly Fire -198 Cogmind --------- Core Integrity 0/700 Matter 173/300 Energy 92/100 System Corruption 5% Temperature Cool (18) Movement Rolling (105) Ox1 Location -7/Factory Parts ------- > --- POWER (2) -------- (None) > --- PROPULSION (3) --- Armored Wheel Armored Wheel > --- UTILITY (5) ------ High-capacity Storage Unit Advanced Visual Processing Unit > --- WEAPON (3) ------- (None) > --- INVENTORY (20) --- Improved Carbon-fiber Leg Advanced Terrain Scan Processor Improved Trap Extractor (0/6) Bore Cannon Remote Datajack Peak State ------------ > --- POWER ------------ Improved Ion Engine Heavy Deuterium Engine > --- PROPULSION ------- Armored Wheel Armored Huge Wheel > --- UTILITY ---------- High-capacity Storage Unit Advanced Visual Processing Unit Recalibrator > --- WEAPON ----------- Improved EM Pulse Cannon Ion Cannon Assault Cannon > --- INVENTORY -------- Improved Carbon-fiber Leg Armored Wheel Armored Wheel Armored Huge Wheel Advanced Terrain Scan Processor Improved Trap Extractor Heavy Laser Gatling Laser Flak Gun Bore Cannon Remote Datajack [Rating: 39] Favorites ----------- Power Improved Ion Engine Engine Improved Ion Engine Power Core Light Nuclear Core Propulsion Armored Huge Wheel Leg Aluminum Leg Wheel Armored Huge Wheel Utility Advanced Visual Processing Unit Device Recalibrator Storage Large Storage Unit Processor Advanced Visual Processing Unit Protection Light Armor Plating Weapon Small Laser Energy Gun Small Laser Energy Cannon Improved EM Pulse Cannon Ballistic Gun Flak Gun Ballistic Cannon Assault Cannon Special Weapon Remote Datajack Build | -11 -10 -10 -9 -9 -8 -7 ------- Run | Yrd Mat Min Mat Min Mat Fac Slots Evolved 6 | . . . 2 . 2 2 Power 1 | . . . . . . 1 Propulsion 1 | . . . . . 1 . Utility 3 | . . . 1 . 1 1 Weapon 1 | . . . 1 . . . Parts Attached 36 | 6 2 2 8 4 4 10 Power 5 | 1 . 1 2 . 1 . Engine 4 | 1 . 1 1 . 1 . Core 1 | . . . 1 . . . Reactor . | . . . . . . . Propulsion 10 | 2 . . 3 1 . 4 Treads . | . . . . . . . Leg 3 | . . . 3 . . . Wheel 7 | 2 . . . 1 . 4 Hover . | . . . . . . . Flight . | . . . . . . . Utility 8 | 1 2 . 2 1 1 1 Device 2 | . . . 1 . 1 . Storage 4 | 1 2 . . . . 1 Processor 1 | . . . . 1 . . Hackware . | . . . . . . . Protection 1 | . . . 1 . . . Artifact . | . . . . . . . Weapon 13 | 2 . 1 1 2 2 5 Energy Gun 6 | 2 . 1 1 . . 2 Energy Cannon 3 | . . . . 1 1 1 Ballistic Gun 1 | . . . . . . 1 Ballistic Cannon 2 | . . . . 1 . 1 Launcher . | . . . . . . . Special Weapon 1 | . . . . . 1 . Impact Weapon . | . . . . . . . Slashing Weapon . | . . . . . . . Piercing Weapon . | . . . . . . . Special Melee Weapon . | . . . . . . . Unidentified Prototypes 1 | . . . . . 1 . Parts Lost 20 | . . 3 3 3 . 11 Power 4 | . . 1 1 . . 2 Propulsion 5 | . . 1 . 2 . 2 Utility 2 | . . . 1 . . 1 Weapon 9 | . . 1 1 1 . 6 Highest Loss Streak 9 | . . 2 2 2 . 9 To Critical Strikes 1 | . . . 1 . . . Average Backups 6 | 4 5 5 5 4 6 8 Power . | . 1 . . . . . Propulsion 1 | 2 2 2 . . . 2 Utility 2 | . 1 2 3 3 4 2 Weapon 1 | 1 1 . . . 1 3 Tool/Special . | . . . . . . . Unused Backups 5 | . . . . . . 5 Power . | . . . . . . . Propulsion 1 | . . . . . . 1 Utility 4 | . . . . . . 4 Weapon . | . . . . . . . Tool/Special . | . . . . . . . Average Slot Usage (%) 79 | . 95 96 86 83 72 69 Engine 10 | . 14 13 2 11 9 13 Core 1 | . . . 7 . . . Leg 4 | . . . 17 11 . . Wheel 10 | . 28 26 1 4 9 10 Device 4 | . . . 5 . 6 6 Storage 16 | . 23 28 22 22 18 7 Processor 5 | . . . . 10 9 7 Energy Gun 11 | . 28 27 25 16 . . Energy Cannon 6 | . . . . 4 6 12 Ballistic Cannon 4 | . . . . 3 9 6 Peak Build Rating 39 | 6 7 7 14 27 36 39 Average Rating 22 | 2 6 6 11 17 31 36 On Entrance 12 | . 6 7 7 8 25 36 Avg Prop Armor Cover (%) . | . . . . . . . Naked Turns . | . . . . . . . Heaviest Build 81 | 13 38 38 43 56 61 81 Greatest Support 40 | 20 20 20 20 28 28 40 Greatest Overweight (x) 21 | 3 1 3 11 13 2 21 Average Overweight (x) 1 | . . 1 2 1 1 1 Largest Inventory Capacity 20 | 8 15 15 15 15 15 20 Average Capacity 16 | 7 13 15 15 15 15 19 Most Carried 13 | 7 6 7 8 8 8 13 Average Carried 6 | 4 5 5 5 4 6 9 Final Capacity 20 | 8 15 15 15 15 15 20 Final Carried 7 | 4 6 7 5 6 6 5 Class Distribution -------------------- 47% | Mutant 42% | Skirmisher 6% | Tank Dominant Class ---------------- Mutant | -10/Materials Mutant | -10/Mines Mutant | -9/Materials Mutant | -9/Mines Mutant | -8/Materials Skirmisher | -7/Factory Resources | -11 -10 -10 -9 -9 -8 -7 ----------- Run | Yrd Mat Min Mat Min Mat Fac Matter Collected 670 | 184 . 111 95 24 130 126 Remotely . | . . . . . . . Salvage Created 1123 | . . 228 325 63 200 307 Parts 55 | . . 8 16 6 10 15 Haulers Intercepted . | . . . . . . . Recyclers Shooed . | . . . . . . . Parts Field Recycled . | . . . . . . . Retrieved Matter . | . . . . . . . Parts Self-Destructed . | . . . . . . . Prevented . | . . . . . . . Parts Restored . | . . . . . . . Kills | -11 -10 -10 -9 -9 -8 -7 ------- Run | Yrd Mat Min Mat Min Mat Fac Combat Hostiles Destroyed 31 | . . 7 7 4 4 9 Guns 15 | . . 7 7 . . 1 Cannons 13 | . . . . 3 2 8 AOE 2 | . . . . 1 1 . Classes Destroyed 7 | . . 2 3 . 1 1 Worker 1 | . . . 1 . . . Watcher 2 | . . . 2 . . . Swarmer 12 | . . 3 2 4 . 3 Cutter 1 | . . . . . 1 . Grunt 11 | . . 4 3 . 2 2 Sentry 4 | . . . 2 . 1 1 Programmer 3 | . . . . . . 3 Thug 1 | . . . . . 1 . Best Kill Streak 4 | . . 3 4 2 2 2 Combat Bots Only 3 | . . 3 3 2 2 2 Max Kills in Single Turn 1 | . . 1 1 1 1 1 Gunslinging . | . . . . . . . Exploded 1 | . . . . 1 1 . Melee . | . . . . . . . Uniques/NPCs Destroyed . | . . . . . . . Combat | -11 -10 -10 -9 -9 -8 -7 -------- Run | Yrd Mat Min Mat Min Mat Fac Hostile Shots Fired 386 | . . 52 83 31 11 209 Missed 113 | . . 14 24 7 6 62 Hits 273 | . . 38 59 24 5 147 Melee 1 | . . . . . 1 . Projectile 272 | . . 38 59 24 4 147 AOE 2 | . . . . . 2 . Critical Strikes 10 | . . 1 3 . 2 4 Damage Taken 3696 | . . 457 619 224 220 2176 Core 960 | . . 82 71 42 54 711 Absorbed by Shields . | . . . . . . . Core Remaining (%) 82 | 100 . 67 . 71 90 . Volleys Fired 140 | . . 37 45 10 16 32 Largest 3 | . . 2 2 3 2 2 Hottest 173 | . . 90 96 173 117 149 Shots Fired 219 | . . 48 71 20 19 61 Gun 131 | . . 48 71 2 . 10 Cannon 87 | . . . . 18 18 51 Launcher . | . . . . . . . Special 1 | . . . . . 1 . Kinetic 43 | . . . . 8 8 27 Thermal 158 | . . 48 71 2 3 34 Explosive . | . . . . . . . Electromagnetic 17 | . . . . 10 7 . Robot Hit Streak 12 | . . 12 9 3 3 9 Robot Miss Streak 7 | . . 2 3 7 4 5 Penetration Max . | . . . . . . . Secondary Targets 1 | . . . 1 . . . Max Gunslinging Chain 1 | . . . 1 . . . Shots Hit Robots 127 | . . 33 44 8 9 33 Core Hits 53 | . . 12 16 4 7 14 Critical Kills 1 | . . . . 1 . . Critical Parts Destroyed 2 | . . . . 1 1 . Critical Strikes 6 | . . . 1 2 1 2 Burn 1 | . . . 1 . . . Destroy 3 | . . . . 2 1 . Blast 2 | . . . . . . 2 Melee Attacks . | . . . . . . . Impact . | . . . . . . . Slashing . | . . . . . . . Piercing . | . . . . . . . Sneak Attacks . | . . . . . . . Combat Hostiles . | . . . . . . . Follow-up Attacks . | . . . . . . . Damage Inflicted 2509 | . . 399 565 249 395 901 Guns 1138 | . . 399 565 . . 174 Cannons 1189 | . . . . 209 253 727 Explosions 182 | . . . . 40 142 . Melee . | . . . . . . . Ramming . | . . . . . . . Kinetic 519 | . . . . 64 62 393 Thermal 1674 | . . 399 565 40 162 508 Explosive . | . . . . . . . Electromagnetic 316 | . . . . 145 171 . Impact . | . . . . . . . Slashing . | . . . . . . . Piercing . | . . . . . . . Highest Corruption 5 | . . . . . . 5 Average Corruption 2 | . . . . . . 2 Corruption Purged . | . . . . . . . Corruption Blocked . | . . . . . . . Effects 6 | . . . . . . 6 Matter Fused 1 | . . . . . . 1 Heat Flow Errors 2 | . . . . . . 2 Energy Discharges 1 | . . . . . . 1 Parts Rejected 1 | . . . . . . 1 Data Loss (minor) 1 | . . . . . . 1 Overload Shots . | . . . . . . . Overflow Damage 26 | . . . . . 9 17 Projectiles 26 | . . . . . 9 17 Explosions . | . . . . . . . Melee . | . . . . . . . Knockbacks 4 | . . . . . 2 2 Impact . | . . . . . . . Kinetic 3 | . . . . . 1 2 Secondary 1 | . . . . . 1 . Self-Inflicted Damage 6 | . . . . 6 . . Shots 1 | . . . . 1 . . Rammed . | . . . . . . . Targets Rammed . | . . . . . . . Kicked . | . . . . . . . Crushed . | . . . . . . . Highest Temperature 448 | . . 197 448 330 129 357 Average Temperature 128 | . . 77 256 182 45 115 Received Heat Transfer 1131 | . . 240 183 . 9 699 Effects 7 | . . . 4 . . 3 Shutdowns 1 | . . . 1 . . . Energy Bleed 4 | . . . 3 . . 1 Interference 2 | . . . . . . 2 Siege Activations . | . . . . . . . Martial Activations . | . . . . . . . Shielding Activations . | . . . . . . . Robots Disrupted . | . . . . . . . Combat Hostiles . | . . . . . . . Robots Corrupted 1 | . . . . . 1 . Combat Hostiles 1 | . . . . . 1 . Parts Fried . | . . . . . . . Impact Corruptions . | . . . . . . . Robots Melted . | . . . . . . . Combat Hostiles . | . . . . . . . Parts Melted 6 | . . 1 4 . . 1 Heat Transferred 3536 | . . 1078 1417 50 137 854 Parts Sabotaged . | . . . . . . . Parts Stolen . | . . . . . . . Parts Stripped . | . . . . . . . Power Chain Reactions 2 | . . . . 1 1 . Alert | -11 -10 -10 -9 -9 -8 -7 ------- Run | Yrd Mat Min Mat Min Mat Fac Maximum Alert Level . | . . . . . . . Low Security (%) 100 | 100 100 100 100 100 100 100 Level 1 . | . . . . . . . Level 2 . | . . . . . . . Level 3 . | . . . . . . . Level 4 . | . . . . . . . Level 5 . | . . . . . . . High Security . | . . . . . . . Max Security . | . . . . . . . Peak Influence 128 | . . 70 80 56 128 101 Initial 53 | . . . 17 24 17 53 Average 20 | . . 35 30 8 31 16 Influence Increases 1012 | . . 215 229 96 189 283 Destroy 0b10 Robot/C 620 | . . 140 140 80 80 180 Destroy 0b10 Robot/NC 15 | . . . 15 . . . Destroy Leader 154 | . . 30 44 10 20 50 Successful Hack 13 | . . . . . 8 5 Disable Machine 30 | . . . . . 30 . Destroy Structure 45 | . . . . 6 36 3 Lose Combat Pursuer 135 | . . 45 30 . 15 45 Influence Decreases 993 | . . 170 212 112 117 382 Entered New Map 160 | . . . 28 38 29 65 Time Decay 653 | . . 140 154 64 88 207 Lost Part 180 | . . 30 30 10 . 110 Squads Dispatched 9 | . . . 1 . 2 6 Investigation . | . . . . . . . Extermination 2 | . . . . . . 2 Reinforcement 7 | . . . 1 . 2 4 Assault . | . . . . . . . Garrison . | . . . . . . . Intercept . | . . . . . . . Searches Triggered . | . . . . . . . Construction Impeded 1 | . . . . . . 1 Haulers Reinforced . | . . . . . . . Active Scanning Responses . | . . . . . . . Cargo Convoy Interrupts . | . . . . . . . Stealth | -11 -10 -10 -9 -9 -8 -7 --------- Run | Yrd Mat Min Mat Min Mat Fac Distress Signals 7 | . . . 2 . 3 2 Communications Jammed . | . . . . . . . Distress Signals . | . . . . . . . Times Spotted 65 | . 1 10 14 7 9 24 Peak Tracking Total 9 | . 1 3 5 4 4 9 Tactical Retreats 6 | . . 2 1 . 1 2 Traps | -11 -10 -10 -9 -9 -8 -7 ------- Run | Yrd Mat Min Mat Min Mat Fac Traps Triggered 2 | . . . 2 . . . Indirectly . | . . . . . . . Trap Hack Attempts . | . . . . . . . Triggered . | . . . . . . . Disarmed . | . . . . . . . Reprogrammed . | . . . . . . . Reused . | . . . . . . . Traps Extracted . | . . . . . . . Installed . | . . . . . . . Triggered . | . . . . . . . Machines | -11 -10 -10 -9 -9 -8 -7 ---------- Run | Yrd Mat Min Mat Min Mat Fac Machines Disabled 2 | . . . . . 2 . Max in Single Turn 2 | . . . . . 2 . Machines Repaired . | . . . . . . . Machines Dismantled . | . . . . . . . Machines Sabotaged . | . . . . . . . Overloaded Fab Kills . | . . . . . . . Hacking | -11 -10 -10 -9 -9 -8 -7 --------- Run | Yrd Mat Min Mat Min Mat Fac Machines Accessed 4 | . . . . 1 1 2 Terminals 2 | . . . . . 1 1 Fabricators . | . . . . . . . Repair Stations 1 | . . . . . . 1 Recycling Units . | . . . . . . . Scanalyzers . | . . . . . . . Garrison Access . | . . . . . . . Total Hacks 9 | . . . . 1 5 3 Successful 6 | . . . . 1 4 1 Failed 3 | . . . . . 1 2 Catastrophic 1 | . . . . . 1 . Database Lockouts . | . . . . . . . Manual . | . . . . . . . Terminals 7 | . . . . . 5 2 Fabricators . | . . . . . . . Repair Stations 1 | . . . . . . 1 Recycling Units . | . . . . . . . Scanalyzers . | . . . . . . . Garrison Access . | . . . . . . . Terminal Hacks 6 | . . . . 1 4 1 Record 4 | . . . . . 4 . Open Door 1 | . . . . 1 . . Open DSF 1 | . . . . . . 1 Fabricator Hacks . | . . . . . . . Repair Station Hacks . | . . . . . . . Recycling Unit Hacks . | . . . . . . . Scanalyzer . | . . . . . . . Garrison Access Hacks . | . . . . . . . Unauthorized Hacks . | . . . . . . . Terminals . | . . . . . . . Fabricators . | . . . . . . . Repair Stations . | . . . . . . . Recycling Units . | . . . . . . . Scanalyzers . | . . . . . . . Garrison Access . | . . . . . . . Data Cores Recovered . | . . . . . . . Used . | . . . . . . . Hacking Detections 2 | . . . . . 1 1 Full Trace Events . | . . . . . . . Feedback Events . | . . . . . . . Feedback Blocked . | . . . . . . . Robot Schematics Acquired . | . . . . . . . Robots Built . | . . . . . . . Authchips . | . . . . . . . Time . | . . . . . . . Total Robot Build Rating . | . . . . . . . Part Schematics Acquired . | . . . . . . . Parts Built . | . . . . . . . Authchips . | . . . . . . . Time . | . . . . . . . Total Part Build Rating . | . . . . . . . Part Studies Acquired . | . . . . . . . Parts Repaired . | . . . . . . . Time . | . . . . . . . Parts Recycled . | . . . . . . . Recycled Matter . | . . . . . . . Retrieved Matter . | . . . . . . . Retrieved Components . | . . . . . . . Parts Scanalyzed . | . . . . . . . Part Schematics Acquired . | . . . . . . . Parts Damaged . | . . . . . . . Bothacking | -11 -10 -10 -9 -9 -8 -7 ------------ Run | Yrd Mat Min Mat Min Mat Fac Used RIF Installer . | . . . . . . . Robots Hacked 1 | . . . . . 1 . Non-combat . | . . . . . . . Combat 1 | . . . . . 1 . Robot Hacks Applied 1 | . . . . . 1 . parse_system 1 | . . . . . 1 . Relay Couplers Released . | . . . . . . . Fabnet Peak Effective % . | . . . . . . . Robots Rewired . | . . . . . . . Allies Hacked . | . . . . . . . Hacks Repelled . | . . . . . . . Allies | -11 -10 -10 -9 -9 -8 -7 -------- Run | Yrd Mat Min Mat Min Mat Fac Total Allies . | . . . . . . . Largest Group . | . . . . . . . Highest-Rated Group . | . . . . . . . Highest-Rated Ally . | . . . . . . . Total Orders . | . . . . . . . Ally Attacks . | . . . . . . . Total Damage . | . . . . . . . Kills . | . . . . . . . Allies Corrupted . | . . . . . . . Allies Melted . | . . . . . . . Intel | -11 -10 -10 -9 -9 -8 -7 ------- Run | Yrd Mat Min Mat Min Mat Fac Active Infowar (turns) 1485 | . . . . 361 228 896 Optics 1485 | . . . . 361 228 896 Robot Analysis Total . | . . . . . . . Derelict Logs Recovered 1 | . . . . 1 . . Drone Launches . | . . . . . . . Drone Recoveries . | . . . . . . . Exploration | -11 -10 -10 -9 -9 -8 -7 ------------- Run | Yrd Mat Min Mat Min Mat Fac Turns Passed 2319 | 67 82 295 388 363 228 896 Spaces Moved 1423 | 49 79 213 127 170 149 636 Core 38 | 33 . . 1 3 . 1 Treads . | . . . . . . . Legs 152 | . . . 84 68 . . Wheels 1233 | 16 79 213 42 99 149 635 Hover . | . . . . . . . Flight . | . . . . . . . Fastest Speed 50 | 50 80 95 125 115 115 105 Average Speed 129 | 104 92 96 197 183 120 121 Slowest Speed 1100 | 200 95 125 600 700 130 1100 Overloaded Moves . | . . . . . . . Propulsion Burnouts . | . . . . . . . Robots Hopped . | . . . . . . . Potential Cave-ins . | . . . . . . . Cave-ins Triggered . | . . . . . . . Exploration Rate (%) 23 | 4 15 44 20 39 22 23 Regions Visited 6 Branch Regions 2 Pre-discovered Areas 1 | . . 1 . . . . Known Exits Taken . | . . . . . . . Unknown Exits Taken 6 | 1 1 1 1 1 1 . Scrap Searched 1 | . . 1 . . . . Spaces Dug . | . . . . . . . Terrain Destroyed 64 | . . . . 8 54 2 Melee . | . . . . . . . Projectile 16 | . . . . 7 7 2 AOE 48 | . . . . 1 47 . Terrain Rammed . | . . . . . . . Walls Destroyed . | . . . . . . . Machines Disabled . | . . . . . . . Actions | -11 -10 -10 -9 -9 -8 -7 --------- Run | Yrd Mat Min Mat Min Mat Fac Total 1678 | 62 87 254 195 204 179 697 Wait 24 | 1 4 . 2 11 6 . Move 1417 | 48 78 212 126 169 148 636 Hop . | . . . . . . . Pick Up 41 | 7 3 3 7 7 3 11 Fast Attach 3 | 3 . . . . . . Attach 33 | 3 1 2 8 5 4 10 Detach 3 | . . . 1 . 1 1 Swap 7 | . 1 . 3 . 1 2 Drop 10 | . . . 3 2 . 5 Fire 140 | . . 37 45 10 16 32 Melee . | . . . . . . . Ram . | . . . . . . . Kick . | . . . . . . . Crush . | . . . . . . . Escape Stasis . | . . . . . . . Rewire . | . . . . . . . Trap . | . . . . . . . Miscellaneous . | . . . . . . . Route ------- -11/Scrapyard -10/Materials -10/Mines -9/Materials -9/Mines -8/Materials -7/Factory (discovered 1 exit: [*Low]) History --------- Turn | Location | Event 8 | -11/Scrapyard | Discovered new exit (range 15) 68 | -11/Scrapyard | Entered Materials 68 | -10/Materials | Discovered new exit (range 7) 150 | -10/Materials | Entered Mines 274 | -10/Mines | Learned location of Storage (-8) 318 | -10/Mines | Build established: Mutant 398 | -10/Mines | Discovered new exit (range 9) 445 | -10/Mines | Entered Materials 445 | -9/Materials | Evolved 2 slots: Utility x1, Weapon x1 742 | -9/Materials | Discovered new exit (range 15) 833 | -9/Materials | Entered Mines 1014 | -9/Mines | Met a Derelict who couldn't figure out how to use a Trap Extractor 1083 | -9/Mines | A weapon hastily lodged in a ceiling crevice suddenly fell to the ground 1182 | -9/Mines | Learned Materials terminal intel 1184 | -9/Mines | Discovered new exit (range 7) 1196 | -9/Mines | Entered Materials 1196 | -8/Materials | Evolved 2 slots: Propulsion x1, Utility x1 1197 | -8/Materials | Loaded intel: 12 terminal locations 1386 | -8/Materials | Discovered new exit (range 20) 1424 | -8/Materials | Entered Factory 1424 | -7/Factory | Evolved 2 slots: Power x1, Utility x1 1505 | -7/Factory | Discovered new exit (range 20) 1700 | -7/Factory | Build established: Skirmisher 2303 | -7/Factory | Core integrity fell below 50% 2313 | -7/Factory | Core integrity fell below 20% 2320 | -7/Factory | Destroyed by G-47 Trooper with Particle Gun Last Messages --------------- K-01 Serf collects debris. Critical hit (Burn: +37). Flak Gun destroyed. Overheating: Energy bleed (-15). K-01 Serf collects debris. Recalibrator destroyed. Arm. Huge Wheel destroyed. Gatling Laser destroyed. K-01 Serf collects debris. U-05 Engineer builds a Wall. K-01 Serf collects debris. ALERT: Hostiles spotted, dispatching reinforcements to Terminal F014. U-05 Engineer works on Assembly Bed. Slug penetrates Wall. K-01 Serf collects debris. U-05 Engineer works on Assembly Bed. K-01 Serf collects debris. K-01 Serf destroyed. K-01 Serf collects debris. Map ----- +----------------------------------------------------+ | ?????????????????????????????????????????????????? | | ?????????????????????????????????????????????????? | | ?????????????????????????????????????????????????? | | ?????????????????????????????????????????????????? | | ?????????????????????????????????????????????????? | | ?????????????????????????????????????????????????? | | ?????????????????????????????????????????????????? | | ?????????????????????????????????????????????????? | | ?????????????????????????????????????????????????? | | ?????????????????????????????????????????????????? | | ?????????????????????????????????????????????????? | | ?????????????????????????????????????????????????? | | ?????????????????????????????????????????????????? | | ?????????????????????????????????????????????????? | | ?????????????????????????????????????????????????? | | ????????????????????????????????? ???????????????? | | ???????????????#????????????????? ??????????????? | | ?????????####### #################+#############+# | | ???????? | | ???????? % | | ???????? [ | | ??????? u< !% a | | ??????? < | % | | ?????? k #???? | | ?????? #???? | | ?????? @ g """#???? | | ?????? g R"#???? | | ?????? gg ! ""#???? | | ??????? gu= k #???? | | ??????? % #???? | | ????????######+############w############ h #???? | | ?????????????????????????? ??????????# = #???? | | ?????????????????????????? ??????????# #??## | | ??????????????????????????" ?????????# % #### | | ?????????????????????????"" ?????????# % / | | ?????????????????????????"" #????????# #### | | ????????????????????????? #????????# % #??# | | ?????????????????????????"" #????????# #??# | | ??????????????????????????" #????????# #??# | | ??????????????????????????" #????????# #??# | | ?????????????????????????? #????????# #??# | | ?????????????????????????? #????????# #??# | | ??????????????????????????#####????????# #??# | | ?????????????????????????????????????### #??# | | ????????????????????????????????????? # #??# | | ???????????????????????????????????????# ##### | | ???????????????????????????????????? # | | ??????????????????????????????????? + | | ???????????????????????????????????????# | | ???????????????????????????????????????# | +----------------------------------------------------+ Best States ------------- Heat Dissipation 42 Energy Generation 25 Energy Capacity 475 Matter Stores 300 Matter Capacity 300 Sight Range 20 Terrain Scan Density 10 Armor Coverage 150 Evasion (%) 50 Item Schematics ----------------- None Robot Schematics ------------------ None Fabricated ------------ Nothing Repaired ---------- Nothing Studied --------- None Alien Tech Used ----------------- None Achievements -------------- Backstab Bumper Bots DATA ERROR: Steam Global Achievement% I Have A Map? Spot Them First There's More Where That Came From Challenges ------------ None Game ------ Seed CoreMetaChip Manual? 0 Play Time 01:05:15 Cumulative 11.0 hours Start 2026.09.08 @ 19:49:16 End 2026.09.08 @ 21:17:06 Sessions 1 Manual Loads 0 Difficulty Rogue Special Mode None Game No. 23 Rogue 14 Adventurer 9 Explorer 0 Win Type - Total 0 Types 0/0/0/0/0/0/0/0/0/0 Lore% 4 Gallery% 12 Achievement% 6 Wizard Run 0 Options --------- Layout 1 ASCII 0 Keyboard 0 Movement Mouse Keybinds 0 Fullscreen 1 Font 24/Smallcaps Map View 50x35 Zoom Use 0% Tactical HUD 0 Map Filters NONE Filters NONE Steam 1 RUN: 3765bc96-cc98-41ac-b48d-7ea5d7e3211e